Cogmind - Beta 13 X1 @@@ ROGUE MODE // 2023.08.15 @ 19:08:15 Player: VR-DUX Result: Destroyed by L-31 Rogue with Katana Performance ------------- Evolutions (1) 500 Regions Visited (3) 600 Robots Destroyed (66) 330 Value Destroyed (1454) 1454 Prototype IDs (1) 20 Alien Tech Used (0) 0 Bonus (0) 0 TOTAL SCORE: 2904 Bonus ------- None Cogmind --------- Core Integrity 0/400 Matter 66/300 Energy 100/100 System Corruption 6% Temperature Cool (0) Movement Treading (240) Ox1 Location -9/Materials Parts ------- > --- POWER (1) -------- (None) > --- PROPULSION (3) --- Light Treads > --- UTILITY (3) ------ Large Storage Unit Signal Interpreter Utility Shielding > --- WEAPON (2) ------- Mini Grenade Launcher Maul (fused) > --- INVENTORY (15) --- Improved Treads Medium Storage Unit Structural Scanner Trap Scanner Advanced Visual Processing Unit Signal Interpreter Improved Targeting Computer Authchip [Device] Improved EM Shotgun Heavy Assault Rifle Light Cannon Rocket Launcher Peak State ------------ > --- POWER ------------ Light Nuclear Core > --- PROPULSION ------- Wheel Wheel > --- UTILITY ---------- Large Storage Unit Structural Scanner Signal Interpreter > --- WEAPON ----------- Improved EM Shotgun Light Cannon > --- INVENTORY -------- Light Treads Medium Storage Unit Large Storage Unit Structural Scanner Sensor Array Utility Shielding Authchip [Device] Improved EM Shotgun Small Laser Light Assault Rifle Light Cannon Rocket Launcher Mini Grenade Launcher [Rating: 14] Favorites ----------- Power Light Ion Engine Engine Light Ion Engine Power Core Light Nuclear Core Propulsion Light Treads Treads Light Treads Leg Aluminum Leg Wheel Wheel Utility Large Storage Unit Device Structural Scanner Storage Large Storage Unit Processor Signal Interpreter Protection Utility Shielding Weapon Light Cannon Energy Gun Medium Laser Ballistic Gun Heavy Assault Rifle Ballistic Cannon Light Cannon Launcher Rocket Launcher Impact Weapon Maul Build | -11 -10 -10 -9 ------- Run | Jun Mat Min Mat Slots Evolved 2 | . . . 2 Power . | . . . . Propulsion 1 | . . . 1 Utility 1 | . . . 1 Weapon . | . . . . Parts Attached 53 | . 16 10 27 Power 9 | . 4 3 2 Engine 8 | . 4 2 2 Core 1 | . . 1 . Reactor . | . . . . Propulsion 15 | . 4 4 7 Treads 13 | . 4 2 7 Leg . | . . . . Wheel 2 | . . 2 . Hover . | . . . . Flight . | . . . . Utility 11 | . 4 2 5 Device 4 | . 2 1 1 Storage 4 | . 1 . 3 Processor 2 | . 1 1 . Hackware . | . . . . Protection 1 | . . . 1 Artifact . | . . . . Weapon 18 | . 4 1 13 Energy Gun 5 | . 2 . 3 Energy Cannon . | . . . . Ballistic Gun 2 | . 1 . 1 Ballistic Cannon 4 | . 1 . 3 Launcher 5 | . . 1 4 Special Weapon . | . . . . Impact Weapon 2 | . . . 2 Slashing Weapon . | . . . . Piercing Weapon . | . . . . Special Melee Weapon . | . . . . Unidentified Prototypes 1 | . . . 1 Parts Lost 15 | . 4 4 7 Power 5 | . 1 2 2 Propulsion 7 | . 2 2 3 Utility 1 | . . . 1 Weapon 2 | . 1 . 1 Highest Loss Streak 5 | . 2 2 5 To Critical Strikes . | . . . . Average Slot Usage (%) 89 | . 87 93 88 Engine 9 | . 11 10 7 Treads 24 | . 24 26 21 Leg 1 | . 3 . . Device 7 | . 5 9 8 Storage 13 | . 14 14 11 Processor 5 | . 2 4 11 Energy Gun 10 | . 19 5 . Ballistic Gun 1 | . 1 . 4 Ballistic Cannon 9 | . 4 14 10 Launcher 2 | . . 8 . Impact Weapon 1 | . . . 5 Naked Turns . | . . . . Heaviest Build 33 | 12 30 32 33 Greatest Support 60 | 20 40 40 60 Greatest Overweight (x) 8 | . 1 1 8 Average Overweight (x) . | . . . . Largest Inventory Capacity 15 | 8 15 15 15 Average Capacity 14 | 8 13 15 15 Most Carried 15 | 6 11 15 15 Average Carried 11 | 6 8 12 14 Final Capacity 15 | 8 15 15 15 Final Carried 12 | 6 11 12 12 Class Distribution -------------------- 75% | Mutant 24% | Scavenger-Mutant Dominant Class ---------------- Mutant | -10/Materials Mutant | -10/Mines Scavenger-Mutant | -9/Materials Resources | -11 -10 -10 -9 ----------- Run | Jun Mat Min Mat Matter Collected 1169 | 200 202 319 448 Remotely . | . . . . Salvage Created 1707 | 143 753 292 519 Parts 130 | 9 54 25 42 Haulers Intercepted 3 | . 1 . 2 Recyclers Shooed 6 | . . 2 4 Parts Field Recycled . | . . . . Retrieved Matter . | . . . . Parts Self-Destructed . | . . . . Prevented . | . . . . Kills | -11 -10 -10 -9 ------- Run | Jun Mat Min Mat Combat Hostiles Destroyed 39 | . 12 16 11 Guns 12 | . 10 2 . Cannons 20 | . . 14 6 AOE 4 | . . . 4 Classes Destroyed 12 | 2 7 1 2 Worker 4 | . 1 1 2 Builder 6 | . 4 . 2 Tunneler 4 | 3 1 . . Hauler 3 | . 1 . 2 Recycler 3 | 1 1 . 1 Operator 2 | . 1 . 1 Watcher 5 | . 2 . 3 Swarmer 10 | . . 10 . Grunt 24 | . 10 6 8 Brawler 1 | . . . 1 Sentry 2 | . . . 2 Subdweller 2 | . 2 . . Best Kill Streak 5 | 3 3 4 5 Combat Bots Only 4 | . 3 4 3 Max Kills in Single Turn 2 | 1 1 1 2 Gunslinging . | . . . . Exploded 1 | . . . 1 Melee . | . . . . Uniques/NPCs Destroyed . | . . . . Combat | -11 -10 -10 -9 -------- Run | Jun Mat Min Mat Damage Taken 2880 | . 742 739 1399 Core 595 | . 71 97 427 Absorbed by Shields . | . . . . Redirected to Shielding 14 | . . . 14 Core Remaining (%) 66 | 100 . 32 . Volleys Fired 254 | 11 87 72 84 Largest 2 | 2 2 2 1 Hottest 100 | 100 100 75 35 Shots Fired 352 | 22 151 95 84 Gun 190 | 22 142 23 3 Cannon 154 | . 9 72 73 Launcher 8 | . . . 8 Special . | . . . . Kinetic 178 | . 30 72 76 Thermal 160 | 22 115 23 . Explosive 8 | . . . 8 Electromagnetic 6 | . 6 . . Robot Hit Streak 22 | 7 10 8 22 Robot Miss Streak 4 | 1 3 2 4 Penetration Max . | . . . . Secondary Targets 1 | . 1 . . Max Gunslinging Chain 1 | . 1 . . Shots Hit Robots 237 | 14 99 57 67 Core Hits 99 | 5 43 23 28 Critical Kills . | . . . . Critical Parts Destroyed 2 | . . . 2 Critical Strikes 14 | 2 5 3 4 Burn 7 | 2 5 . . Blast 5 | . . 3 2 Smash 2 | . . . 2 Melee Attacks 15 | . . . 15 Impact 15 | . . . 15 Slashing . | . . . . Piercing . | . . . . Sneak Attacks 1 | . . . 1 Combat Hostiles . | . . . . Follow-up Attacks . | . . . . Damage Inflicted 4271 | 189 1278 969 1835 Guns 1527 | 189 1184 121 33 Cannons 1960 | . 94 840 1026 Explosions 547 | . . . 547 Melee 229 | . . . 229 Ramming 8 | . . 8 . Kinetic 2098 | . 199 840 1059 Thermal 1285 | 189 975 121 . Explosive 547 | . . . 547 Electromagnetic 104 | . 104 . . Impact 229 | . . . 229 Slashing . | . . . . Piercing . | . . . . Highest Corruption 6 | . . . 6 Average Corruption 5 | . . . 5 Corruption Purged . | . . . . Corruption Blocked . | . . . . Effects 8 | . . . 8 Matter Fused 2 | . . . 2 Energy Discharges 4 | . . . 4 Parts Fused 1 | . . . 1 Data Loss (minor) 1 | . . . 1 Overload Shots . | . . . . Overflow Damage 189 | . 17 2 170 Projectiles 19 | . 17 2 . Explosions . | . . . . Melee 170 | . . . 170 Knockbacks 29 | . . 14 15 Impact 1 | . . . 1 Kinetic 26 | . . 13 13 Secondary 2 | . . 1 1 Self-Inflicted Damage 124 | . 66 . 58 Shots 3 | . 1 . 2 Rammed 2 | . . 2 . Targets Rammed 2 | . . 2 . Kicked . | . . . . Crushed . | . . . . Highest Temperature 368 | 220 368 144 23 Average Temperature 85 | 98 108 43 7 Received Heat Transfer 1293 | . 309 327 657 Siege Activations . | . . . . Robots Corrupted . | . . . . Combat Hostiles . | . . . . Parts Fried 2 | . . . 2 Impact Corruptions 7 | . . . 7 Robots Melted 2 | . 2 . . Combat Hostiles 2 | . 2 . . Parts Melted 5 | 1 4 . . Heat Transferred 4174 | 703 3196 275 . Parts Sabotaged . | . . . . Parts Stolen . | . . . . Parts Stripped . | . . . . Power Chain Reactions . | . . . . Missiles Intercepted . | . . . . Alert | -11 -10 -10 -9 ------- Run | Jun Mat Min Mat Peak Influence 303 | 20 237 220 303 Initial 44 | . 13 . 44 Average 90 | 10 74 93 125 Maximum Alert Level 1 | . 1 1 1 Low Security (%) 89 | 100 85 93 91 Level 1 10 | . 14 6 8 Level 2 . | . . . . Level 3 . | . . . . Level 4 . | . . . . Level 5 . | . . . . High Security . | . . . . Max Security . | . . . . Squads Dispatched 2 | . 2 . . Investigation 1 | . 1 . . Extermination . | . . . . Reinforcement 1 | . 1 . . Assault . | . . . . Garrison . | . . . . Intercept . | . . . . Searches Triggered . | . . . . Construction Impeded . | . . . . Haulers Reinforced . | . . . . Active Scanning Responses . | . . . . Cargo Convoy Interrupts . | . . . . Stealth | -11 -10 -10 -9 --------- Run | Jun Mat Min Mat Distress Signals 7 | . 3 . 4 Communications Jammed . | . . . . Distress Signals . | . . . . Times Spotted 64 | . 20 18 26 Peak Tracking Total 7 | . 4 4 7 Tactical Retreats 5 | . 1 3 1 Traps | -11 -10 -10 -9 ------- Run | Jun Mat Min Mat Traps Triggered 2 | . 2 . . Indirectly . | . . . . Trap Hack Attempts . | . . . . Triggered . | . . . . Disarmed . | . . . . Reprogrammed . | . . . . Reused . | . . . . Traps Extracted . | . . . . Installed . | . . . . Triggered . | . . . . Machines | -11 -10 -10 -9 ---------- Run | Jun Mat Min Mat Machines Disabled 5 | . 1 . 4 Max in Single Turn 2 | . 1 . 2 Machines Repaired . | . . . . Machines Sabotaged . | . . . . Overloaded Fab Kills . | . . . . Hacking | -11 -10 -10 -9 --------- Run | Jun Mat Min Mat Machines Accessed 10 | . 7 . 3 Terminals 7 | . 5 . 2 Fabricators . | . . . . Repair Stations 1 | . . . 1 Recycling Units 2 | . 2 . . Scanalyzers . | . . . . Garrison Access . | . . . . Total Hacks 21 | . 11 . 10 Successful 7 | . 4 . 3 Failed 14 | . 7 . 7 Catastrophic 4 | . 3 . 1 Database Lockouts . | . . . . Manual 19 | . 10 . 9 Terminals 17 | . 9 . 8 Fabricators . | . . . . Repair Stations 2 | . . . 2 Recycling Units 2 | . 2 . . Scanalyzers . | . . . . Garrison Access . | . . . . Terminal Hacks 4 | . 2 . 2 Robot Analysis 3 | . 2 . 1 Branch Access Points 1 | . . . 1 Fabricator Hacks . | . . . . Repair Station Hacks . | . . . . Recycling Unit Hacks 2 | . 2 . . Retrieve Components 2 | . 2 . . Scanalyzer . | . . . . Garrison Access Hacks . | . . . . Unauthorized Hacks 1 | . . . 1 Terminals 1 | . . . 1 Botnet 1 | . . . 1 Fabricators . | . . . . Repair Stations . | . . . . Recycling Units . | . . . . Scanalyzers . | . . . . Garrison Access . | . . . . Data Cores Recovered 1 | . . . 1 Used . | . . . . Hacking Detections 8 | . 5 . 3 Full Trace Events . | . . . . Feedback Events . | . . . . Feedback Blocked . | . . . . Robot Schematics Acquired . | . . . . Robots Built . | . . . . Authchips . | . . . . Time . | . . . . Total Robot Build Rating . | . . . . Part Schematics Acquired . | . . . . Parts Built . | . . . . Authchips . | . . . . Time . | . . . . Total Part Build Rating . | . . . . Parts Repaired . | . . . . Time . | . . . . Parts Recycled . | . . . . Recycled Matter . | . . . . Retrieved Matter . | . . . . Retrieved Components 12 | . 12 . . Parts Scanalyzed . | . . . . Part Schematics Acquired . | . . . . Parts Damaged . | . . . . Bothacking | -11 -10 -10 -9 ------------ Run | Jun Mat Min Mat Used RIF Installer . | . . . . Robots Hacked . | . . . . Non-combat . | . . . . Combat . | . . . . Robot Hacks Applied . | . . . . Relay Couplers Released . | . . . . Fabnet Peak Effective % . | . . . . Robots Rewired . | . . . . Allies Hacked . | . . . . Hacks Repelled . | . . . . Allies | -11 -10 -10 -9 -------- Run | Jun Mat Min Mat Total Allies . | . . . . Largest Group . | . . . . Highest-Rated Group . | . . . . Highest-Rated Ally . | . . . . Total Orders . | . . . . Ally Attacks . | . . . . Total Damage . | . . . . Kills . | . . . . Allies Corrupted . | . . . . Allies Melted . | . . . . Intel | -11 -10 -10 -9 ------- Run | Jun Mat Min Mat Robot Analysis Total 3 | . 2 . 1 Derelict Logs Recovered 2 | . . 2 . Drone Launches . | . . . . Drone Recoveries . | . . . . Exploration | -11 -10 -10 -9 ------------- Run | Jun Mat Min Mat Turns Passed 3523 | 125 1487 1023 888 Spaces Moved 1609 | 36 755 456 362 Core 1 | . . . 1 Treads 1446 | . 684 455 307 Legs 107 | 36 71 . . Wheels 55 | . . 1 54 Hover . | . . . . Flight . | . . . . Fastest Speed 95 | 120 120 95 95 Average Speed 160 | 120 158 167 161 Slowest Speed 450 | 120 240 240 450 Overloaded Moves . | . . . . Propulsion Burnouts . | . . . . Robots Hopped . | . . . . Cave-ins Triggered . | . . . . Exploration Rate (%) 54 | 3 86 88 41 Regions Visited 3 Branch Regions 1 Pre-discovered Areas 2 | . . 2 . Known Exits Taken 2 | . 1 1 . Unknown Exits Taken 1 | 1 . . . Scrap Searched 3 | . . 3 . Spaces Dug 5 | . . . 5 Terrain Destroyed 59 | . 5 . 54 Melee 5 | . . . 5 Projectile . | . . . . AOE 54 | . 5 . 49 Terrain Rammed . | . . . . Walls Destroyed . | . . . . Machines Disabled . | . . . . Actions | -11 -10 -10 -9 --------- Run | Jun Mat Min Mat Total 2166 | 95 901 618 552 Wait 164 | 49 18 69 28 Move 1606 | 35 754 455 362 Hop . | . . . . Pick Up 37 | . 14 7 16 Fast Attach 14 | . 7 . 7 Attach 19 | . 5 7 7 Detach 3 | . . 1 2 Swap 20 | . 4 3 13 Drop 32 | . 12 2 18 Fire 254 | 11 87 72 84 Melee 15 | . . . 15 Ram . | . . . . Kick . | . . . . Crush 2 | . . 2 . Escape Stasis . | . . . . Rewire . | . . . . Trap . | . . . . Miscellaneous . | . . . . Route ------- -11/Junkyard -10/Materials (discovered 5 exits: *Mat x3 / *Min / [*Sub]) -10/Mines (discovered 3 exits: *Mat x2 / [*Sub]) -9/Materials (discovered 3 exits: *Min / *Sto x2) History --------- Turn | Location | Event 8 | -11/Junkyard | Discovered new exit (range 3) 126 | -11/Junkyard | Entered Materials 314 | -10/Materials | Build established: Mutant 406 | -10/Materials | Discovered new exit (range 3) 595 | -10/Materials | Discovered new exit (range 10) 600 | -10/Materials | Derelicts attacked the area 657 | -10/Materials | Discovered new exit (range 8) 782 | -10/Materials | Discovered new exit (range 14) 1429 | -10/Materials | Identified exit to Mines 1543 | -10/Materials | Discovered new exit (range 7) 1613 | -10/Materials | Entered Mines 1770 | -10/Mines | Discovered new exit (range 8) 1798 | -10/Mines | Core integrity fell below 50% 2005 | -10/Mines | Received a Rocket Launcher from a helpful Derelict 2051 | -10/Mines | Discovered new exit (range 7) 2245 | -10/Mines | Learned location of Storage (-9) 2397 | -10/Mines | A weapon hastily lodged in a ceiling crevice suddenly fell to the ground 2417 | -10/Mines | Learned Materials stockpile data 2600 | -10/Mines | Discovered new exit (range 13) 2628 | -10/Mines | Identified exit to Materials 2636 | -10/Mines | Entered Materials 2636 | -9/Materials | Evolved 2 slots: Propulsion x1, Utility x1 2686 | -9/Materials | Discovered new exit (range 15) 2707 | -9/Materials | Identified exit to Storage 2797 | -9/Materials | Identified exit to Mines 3021 | -9/Materials | Build established: Scavenger-Mutant 3353 | -9/Materials | Core integrity fell below 50% 3393 | -9/Materials | Lost 5 parts (1p3n1u) 3509 | -9/Materials | Core integrity fell below 20% 3524 | -9/Materials | Destroyed by L-31 Rogue with Katana Last Messages --------------- 03508_ R-06 Scavenger collects Aluminum Leg. 03509_ Electrolysis Chamber disabled. 03509_ Terminal disabled. 03509_ K-01 Serf collects debris. 03510_ System corrupted: Component data lost. 03510_ U-05 Engineer builds a Wall. 03510_ U-05 Engineer lays Concrete. 03512_ U-05 Engineer builds a Wall. 03512_ K-01 Serf cleans the Electrolysis Chamber. 03514_ U-05 Engineer lays Concrete. 03516_ Destroyed Melee Analysis Suite. 03516_ L-31 Rogue system corrupted by crushing effect. 03517_ K-01 Serf collects debris. 03517_ U-05 Engineer builds a Wall. 03517_ U-05 Engineer lays Concrete. 03519_ Lgt. Ion Engine destroyed. 03519_ U-05 Engineer lays Concrete. 03521_ K-01 Serf collects debris. 03522_ U-05 Engineer builds a Wall. 03522_ U-05 Engineer lays Concrete. Map ----- +----------------------------------------------------+ | ?????????????????????????????????????????????????? | | ?????????????????????????????????????????????????? | | ?????????????????????????????????????????????????? | | ?????????????????????????????????????????????????? | | ?????????????????????????????????????????????????? | | ?????????????????????????????????????????????????? | | ?????????????????????????????????????????????????? | | ?????????????????????????????????????????????????? | | ????????????????????? ???????????????????????? | | ????????????????????? ???????????????????????? | | ????????????????????? ???????????????????????? | | ??????????????#+????? ???????????????????????? | | ??????????????? ???? #???????????????????????? | | ????? ??????? ??? #???????????????????????? | | ## ??? ???"" """ #???????????????????????? | | #### ??] """ """ ???????????????????????? | | ?? """ """ #???????????????????????? | | ""?? #???????????????????????? | | "??? #???????????????????????? | | "?? [ #???????????????????????? | | ???? % Y #???????????????????????? | | ??????? #???????????????????????? | | ##??????????### g #???????????????????????? | | ##??????##### g #???????????????????????? | | ##??????# #l#####+##????????????????? | | ##??????# #k @ #????????????????? | | ######### """ #uu #????????????????? | | ######### """ # #????????????????? | | # """ #w # #????????????????? | | # u + #????????????????? | | # # # #????????????????? | | #######+### # #????????????????? | | "" """ # # #????????????????? | | "T """ # ###########????????????????? | | "" """ + ##?????????????????????????? | | # #######+######???????????????????????? | | ## #### # ## !! #???????????????????????? | | ######## [ "# # ??????????????????????? | | # ## # # ??????????????????????? | | # ## !# # ??????????????????????? | | + """ ## > "# ##??????????????????????? | | # """ ## |# #???????????????????????? | | # """ ## "# #???????????????????????? | | # ## # +???????????????????????? | | # ! ### # ############ ??????????????????????? | | #+####### ############## ?????????????????????? | | ^ ^ ????????????????????? | | % ^ ^ ???????????????????? | | % !! ??????????????????? | | #####+######## !! ^ ???????????????????? | +----------------------------------------------------+ Best States ------------- Heat Dissipation 28 Energy Generation 14 Energy Capacity 250 Matter Stores 300 Matter Capacity 300 Sight Range 16 Robot Scan Range 14 Terrain Scan Density 10 Utility Shielding 33 Evasion (%) 55 Recoil Reduction 3 Authchip Count 1 Item Schematics ----------------- None Robot Schematics ------------------ None Fabricated ------------ Nothing Alien Tech Used ----------------- None Achievements -------------- None Challenges ------------ None Game ------ Seed GodStormLegs Manual? 0 Play Time 00:40:02 Cumulative 72.1 hours Start 2023.08.15 @ 18:30:36 End 2023.08.15 @ 19:08:15 Sessions 1 Manual Loads 0 Difficulty Rogue Special Mode None Game No. 42 Rogue 42 Adventurer 0 Explorer 0 Win Type - Total 0 Types 0/0/0/0/0/0/0/0/0 Lore% 35 Gallery% 35 Achievement% 35 Wizard Run 0 Options --------- ASCII 0 Keyboard 0 Movement Mouse Keybinds 0 Fullscreen 1 Font 16/SmallcapsGlow Map View 82x54 Tactical HUD 1 Map Filters NONE Filters NONE Steam 1 RUN: fc5272cb-9277-4865-a83e-c429a7df199f